[Event "French-ch U12-U14 2024"]
[Site "Agen"]
[Date "2024.04.21"]
[Round "9.9"]
[White "Deladerriere, Helio"]
[Black "Duquesne, Adrien"]
[Result "1/2-1/2"]
[ECO "C50"]
[WhiteElo "1823"]
[BlackElo "2145"]
[Annotator "TA"]
[PlyCount "158"]
[EventDate "2024.04.14"]
[EventType "swiss"]
[EventCountry "FRA"]
[SourceTitle "playchess.com"]
[Source "ChessBase"]
[SourceQuality "1"]
[TimeControl "5400+30"]

1. e4 {[%emt 0:01:21]} e5 {[%emt 0:00:28]} 2. Nf3 {[%emt 0:01:01]} Nc6 {[%emt 0:00:08]} 3. Bc4 {[%emt 0:00:27]} Be7 {[%emt 0:00:31]} 4. O-O {[%emt 0:01:41]} Nf6 {[%emt 0:02:41]} 5. Nc3 {[%emt 0:02:12]} d6 {[%emt 0:03:33]} 6. d4 {[%emt 0:03:07]} exd4 {[%emt 0:03:32]} 7. Nxd4 {[%emt 0:01:18]} Bd7 {[%emt 0:00:48] C50: Hungarian Defence and Giuoco Pianissimo.} 8. Be3 {[%emt 0:11:50]} Ng4 {[%emt 0:04:03]} 9. Nxc6 {[%emt 0:00:57]} bxc6 {[%emt 0:00:50]} 10. Bf4 {[%emt 0:04:08]} Bf6 {[%emt 0:02:58]} 11. h3 $146 {[%emt 0:04:23]} ({Predecessor:} 11. Qd2 O-O 12. Rad1 Ne5 13. Bxe5 Bxe5 14. f4 Bf6 15. e5 Be7 16. f5 d5 17. Bb3 {1-0 Haffner,A-Braun,M (2162) Kiel op 15th 2002 (8)}) 11... Ne5 {[%emt 0:02:28]} 12. Bxe5 {[%emt 0:02:17]} dxe5 {[%emt 0:01:05]} 13. f4 {[%emt 0:11:31]} Qe7 {[%emt 0:00:46]} 14. fxe5 {[%emt 0:01:03]} Qxe5 {[%emt 0:02:02]} 15. Bxf7+ {[%emt 0:00:20]} Ke7 {[%emt 0:00:40]} 16. Bb3 {[%emt 0:08:38]} Bxh3 {[%emt 0:03:40]} 17. Rxf6 {[%emt 0:13:37]} (17. gxh3 $2 Qg3+ 18. Kh1 Qxh3+ 19. Kg1 Rad8 $19) (17. Qe2 $11 Bd7 18. Rad1) 17... gxf6 $15 {[%emt 0:00:25]} 18. gxh3 {[%emt 0:00:06]} Qg3+ {[%emt 0:00:42]} 19. Kf1 {[%emt 0:00:12]} Qxh3+ {[%emt 0:00:08]} (19... Rag8 $1 $15 20. Bxg8 Rxg8) 20. Ke2 {[%emt 0:00:12]} Qg2+ {[%emt 0:00:14]} 21. Ke3 {[%emt 0:00:32]} Qg3+ {[%emt 0:00:23]} (21... Qg5+ $11 22. Ke2 Qg2+ 23. Ke3 Qg5+ 24. Kf3 Qh5+ 25. Kf2 Qh4+ 26. Ke3 Qh6+ 27. Kf2 Qh2+ 28. Ke3 Qh6+ 29. Ke2 Qh2+ 30. Ke3 Qh6+) 22. Qf3 $16 {[%emt 0:00:18]} Qg5+ {[%emt 0:00:20]} 23. Qf4 {[%emt 0:00:16]} Qc5+ {[%emt 0:00:06]} (23... Qxf4+ $142 24. Kxf4 h5) 24. Ke2 {[%emt 0:00:14]} Qh5+ {[%emt 0:01:39]} 25. Kf2 {[%emt 0:01:25]} Qc5+ {[%emt 0:00:20]} 26. Kf1 {[%emt 0:00:17]} Rad8 $2 {[%emt 0:01:13]} (26... Qe5 27. Qh6 Raf8) 27. Qxc7+ $2 {[%emt 0:01:04]} (27. e5 $18 Rd4 28. Qxf6+ (28. exf6+ Kd8 $18) 28... Kd7 29. Be6+ (29. Qxh8 Rf4+ 30. Ke2 Qf2+ 31. Kd1 Rd4+ 32. Kc1 Qg1+) 29... Ke8 30. Qxh8+ Qf8+ 31. Qxf8+ Kxf8 32. Ke2) 27... Rd7 $16 {[%emt 0:03:07] [#]} 28. Nd5+ $2 {[%emt 0:00:26]} (28. Qh2 $1 $16 {[%mdl 512] and life is bright.}) 28... Qxd5 $1 $19 {[%emt 0:00:13]} (28... cxd5 $2 29. Qxc5+ Rd6 30. exd5 $18 (30. Bxd5 f5 $18)) 29. exd5 {[%emt 0:01:59]} Rxc7 {[%emt 0:00:16]} 30. Re1+ {[%emt 0:00:59]} Kd6 {[%emt 0:02:17]} 31. Re6+ {[%emt 0:00:26]} Kc5 {[%emt 0:00:05]} 32. Rxf6 {[%emt 0:00:24]} cxd5 {[%emt 0:01:12]} 33. Rf5 {[%emt 0:00:05]} Rd8 {[%emt 0:01:14]} 34. c4 {[%emt 0:00:12]} Rd6 {[%emt 0:01:07]} 35. cxd5 {[%emt 0:00:57]} Re7 {[%emt 0:00:21]} 36. Rf4 {[%emt 0:01:45]} Rdd7 {[%emt 0:01:04]} 37. Rh4 {[%emt 0:03:57]} Rf7+ {[%emt 0:00:28]} 38. Ke2 {[%emt 0:00:30]} Rde7+ {[%emt 0:00:06]} 39. Kd3 {[%emt 0:01:35]} Rf3+ {[%emt 0:00:12]} 40. Kd2 {[%emt 0:00:16]} Rf2+ {[%emt 0:00:13]} 41. Kd3 {[%emt 0:00:39]} Ref7 {[%emt 0:00:29]} (41... Rxb2 42. Rc4+ Kxd5 (42... Kd6 43. Rc6+ Kd7 44. Rf6 $17) 43. Rc2+ Rxb3+ 44. axb3 $11) ({Black should play} 41... Rf5 $19 42. Rh2 Rf3+ 43. Kd2 Ref7) 42. Rc4+ $17 {[%emt 0:22:53]} Kd6 $1 {[%emt 0:00:31]} (42... Kxd5 $2 43. Rc7+ Kd6 44. Rxf7 $18) 43. Rc6+ {[%emt 0:00:00]} Kd7 {[%emt 0:00:29]} 44. Ra6 {[%emt 0:00:00]} Kd8 {[%emt 0:00:50]} ({Of course not} 44... Rxb2 $6 45. Rxa7+ Ke8 46. Ra8+ Kd7 47. Kd4 $11) 45. Kd4 {[%emt 0:00:00]} (45. Rd6+ $17 Rd7 46. Rc6) 45... R2f6 $19 {[%emt 0:00:39]} 46. d6 {[%emt 0:00:00]} Rb7 {[%emt 0:00:52]} 47. Bd5 {[%emt 0:00:00]} Rg7 {[%emt 0:02:48]} ({Black should try} 47... Rxb2 $19 48. Bg8 h5 49. Rxa7 Rxd6+ 50. Ke5 Rd1) 48. Kc5 {[%emt 0:00:00]} (48. Ke5 $17 Rf1 49. Bc4) 48... h5 {[%emt 0:00:49]} (48... Rf2 $19 {[%cal Og7g5]} 49. Bb3 Rxb2) 49. Ra3 $2 {[%emt 0:00:00]} (49. Ra4 $1 $15) 49... Rf5 $2 {[%emt 0:02:00]} (49... Rf1 $19 50. Be6 Rg5+ 51. Kc6 Rc1+ 52. Kb7 Rg6) 50. Kc6 {[%emt 0:01:21] [#]} (50. Rb3 $1 $11 Kc8 51. Kc6) 50... Rf1 {[%emt 0:01:03]} ({Better is} 50... Rg1 $1 $17 {[%cal Rg1c1] aiming for ...Rc1+.} 51. Rc3 Rff1) 51. Bc4 $1 $11 {[%emt 0:02:02]} Rc1 {[%emt 0:00:35]} 52. b3 $1 {[%emt 0:00:05]} h4 {[%emt 0:00:39]} 53. Ra5 {[%emt 0:00:12]} Rh7 {[%emt 0:03:06]} 54. Rg5 {[%emt 0:00:19]} (54. Rf5 $5 Re1 $8 55. Rb5 $11) 54... Re1 $1 {[%emt 0:02:05]} 55. Rb5 {[%emt 0:01:36]} (55. Bd3 $5 Rc1+ $8 56. Bc4 $11) 55... Kc8 {[%emt 0:01:35]} 56. Rg5 {[%emt 0:00:43]} Re8 $2 {[%emt 0:03:40][%mdl 8192]} (56... Kd8 $11) 57. Ba6+ $18 {[%emt 0:00:32]} Kb8 {[%emt 0:00:22]} 58. Rb5+ {[%emt 0:00:31]} Ka8 {[%emt 0:00:08]} 59. Bb7+ $2 {[%emt 0:00:14]} (59. d7 $18 {[%cal Rd7e8]} Re6+ 60. Kd5 Rxd7+ 61. Kxe6) 59... Kb8 $11 {[%emt 0:00:20]} 60. Ba6+ $2 {[%emt 0:00:04][%mdl 8192]} (60. d7 $11 Rh6+ 61. Kc5 Re5+ 62. Kc4) 60... Ka8 $18 {[%emt 0:00:03]} 61. d7 {[%emt 0:00:15]} Re6+ {[%emt 0:01:54]} 62. Kc7 $2 {[%emt 0:00:12]} (62. Kd5 $18 {[%cal Rd7d8]} Rxd7+ 63. Kxe6) 62... Rxd7+ $1 $11 {[%emt 0:00:44]} 63. Kxd7 {[%emt 0:00:03]} Rxa6 {[%emt 0:00:11]} 64. Rh5 {[%emt 0:00:06]} (64. Kc7 $5 Rb6 65. Rh5 (65. Rxb6 axb6 66. Kxb6 h3 67. Kc5 h2 68. Kd5 h1=Q+ 69. Ke6 Qb1 70. b4 Qxa2+ 71. Kf5 Qb1+ 72. Kg4 Qxb4+ 73. Kg3 Kb7 74. Kf3 Qe1 75. Kf4 Kc6 76. Kg5 Kd6 77. Kf4 Ke6 78. Kg4 Qe3 79. Kh5 Qg3 80. Kh6 Kf6 81. Kh7 Qg7#) 65... Rb7+ 66. Kc6 $16) 64... Rxa2 {[%emt 0:00:35]} 65. Kc7 {[%emt 0:00:08]} Rc2+ {[%emt 0:00:08]} 66. Kd6 {[%emt 0:00:12]} Rc3 {[%emt 0:01:01]} 67. Rxh4 {[%emt 0:00:12]} Rxb3 {[%emt 0:00:13]} 68. Kc6 {[%emt 0:00:55]} Rb8 {[%emt 0:00:54]} 69. Rh7 {[%emt 0:00:12]} Rg8 {[%emt 0:03:15]} 70. Kb5 {[%emt 0:00:25]} Rb8+ {[%emt 0:00:19]} 71. Kc6 {[%emt 0:00:02]} Rb6+ {[%emt 0:00:23]} 72. Kc5 {[%emt 0:00:07]} Rb1 {[%emt 0:00:19]} 73. Rh8+ {[%emt 0:00:11]} Kb7 {[%emt 0:00:03]} 74. Rh6 {[%emt 0:00:55]} Rc1+ {[%emt 0:00:37]} 75. Kb5 {[%emt 0:00:08]} a6+ {[%emt 0:00:03]} 76. Kb4 {[%emt 0:00:14]} Rc6 {[%emt 0:00:34]} 77. Rxc6 {[%emt 0:00:07]} Kxc6 {[%emt 0:00:08]} 78. Ka5 {[%emt 0:00:03]} Kd5 {[%emt 0:00:06]} 79. Kxa6 {[%emt 0:00:11]} Ke5 {[%emt 0:47:52]} 1/2-1/2

[Event "French-ch U12-U14 2024"]
[Site "Agen"]
[Date "2024.04.21"]
[Round "9.10"]
[White "Lequang, Enzo"]
[Black "Le Geay, Joachim"]
[Result "0-1"]
[ECO "A45"]
[WhiteElo "1807"]
[BlackElo "1792"]
[Annotator "NA RC COMBH"]
[PlyCount "100"]
[EventDate "2024.04.14"]
[EventType "swiss"]
[EventCountry "FRA"]
[SourceTitle "playchess.com"]
[Source "ChessBase"]
[SourceQuality "1"]
[TimeControl "5400+30"]

1. d4 {[%emt 0:00:00]} Nf6 {[%emt 0:00:07]} 2. Bg5 {[%emt 0:00:59]} g6 {[%emt 0:02:02]} 3. Bxf6 {[%emt 0:01:12]} exf6 {[%emt 0:00:05]} 4. c4 {[%emt 0:00:14]} d5 {[%emt 0:00:10]} 5. Nc3 {[%emt 0:00:05]} dxc4 {[%emt 0:00:20]} 6. e3 {[%emt 0:00:10] A45: Trompowsky Attack.} Bd6 {[%emt 0:02:24]} 7. Bxc4 {[%emt 0:00:27]} c6 {[%emt 0:01:02] 7...Nd7 gains popularity.} 8. Nf3 {[%emt 0:00:59]} Nd7 {[%emt 0:01:50]} 9. h4 {[%emt 0:01:53]} h5 {[%emt 0:00:12]} 10. O-O $146 {[%emt 0:00:47]} ({Predecessor:} 10. Qc2 Qe7 11. Bb3 Nb6 12. O-O-O Bg4 13. Kb1 a5 14. e4 Bb4 15. Na4 Nxa4 16. Bxa4 {0-1 Kashlinskaya,A (2494)-Papp,P (2336) Speed Chess (Women) Q8 blitz 2021 (2)}) 10... Nb6 {[%emt 0:02:33]} 11. Bd3 {[%emt 0:00:50]} Bg4 {[%emt 0:03:14]} 12. e4 {[%emt 0:02:41]} O-O {[%emt 0:01:27]} 13. Be2 {[%emt 0:02:26]} c5 {[%emt 0:05:57]} 14. dxc5 {[%emt 0:03:18]} Bxc5 {[%emt 0:00:06]} 15. Qb3 {[%emt 0:00:05]} Qe7 {[%emt 0:05:38]} 16. Rfe1 {[%emt 0:03:41]} Rfd8 {[%emt 0:05:09]} 17. e5 {[%emt 0:05:18]} fxe5 {[%emt 0:04:42]} (17... Be6 $142 18. Qc2 Bf5) 18. Ng5 {[%emt 0:01:53]} Bxe2 {[%emt 0:05:15]} 19. Rxe2 {[%emt 0:00:11]} Rd7 {[%emt 0:02:18]} 20. Rae1 {[%emt 0:00:37]} Bd4 {[%emt 0:00:35]} 21. Nb5 {[%emt 0:00:16]} Qc5 {[%emt 0:02:55]} 22. Nxd4 {[%emt 0:02:07]} exd4 {[%emt 0:00:27]} 23. Re8+ {[%emt 0:00:10]} Rxe8 {[%emt 0:00:16]} 24. Rxe8+ {[%emt 0:00:06]} Kg7 {[%emt 0:00:14]} 25. Qxf7+ $1 {[%emt 0:00:09]} Rxf7 {[%emt 0:00:09]} 26. Ne6+ {[%emt 0:00:04]} Kf6 {[%emt 0:00:48]} 27. Nxc5 {[%emt 0:00:05]} Rc7 {[%emt 0:01:31]} 28. Ne4+ {[%emt 0:05:28]} Kf7 {[%emt 0:04:18]} 29. Nd6+ {[%emt 0:01:31]} Kf6 {[%emt 0:01:15]} 30. Re2 {[%emt 0:00:18]} Rc1+ {[%emt 0:03:17]} 31. Kh2 {[%emt 0:00:56]} Nc4 {[%emt 0:02:02]} 32. Nxc4 {[%emt 0:02:55]} Rxc4 {[%emt 0:00:32]} 33. Re4 {[%emt 0:05:44]} Rc2 {[%emt 0:04:41]} (33... Kf5 $5 34. f3 $8 a5 $11) 34. Rxd4 {[%emt 0:02:06]} Rxb2 {[%emt 0:00:45]} 35. Ra4 {[%emt 0:02:48]} a6 {[%emt 0:02:56]} 36. Kg3 {[%emt 0:00:33]} Ke5 {[%emt 0:01:16]} 37. Kf3 {[%emt 0:02:53]} Rc2 {[%emt 0:01:35]} 38. g3 {[%emt 0:00:42]} Rc6 {[%emt 0:02:32]} 39. g4 {[%emt 0:24:34]} b5 {[%emt 0:03:48]} 40. Re4+ {[%emt 0:01:45]} Kd5 {[%emt 0:00:50]} 41. gxh5 {[%emt 0:01:23]} gxh5 {[%emt 0:00:21]} 42. Re8 {[%emt 0:05:22]} Rc3+ $15 {[%emt 0:03:48]} 43. Kg2 {[%emt 0:21:07]} Rc2 {[%emt 0:01:59]} 44. Rd8+ {[%emt 0:00:05]} Ke6 {[%emt 0:03:00]} 45. a4 {[%emt 0:00:15]} bxa4 {[%emt 0:00:21]} 46. Rd4 {[%emt 0:00:10]} Ra2 {[%emt 0:00:47]} 47. Rb4 {[%emt 0:00:23]} Kf5 {[%emt 0:01:38]} 48. Kg3 {[%emt 0:01:05]} Ke5 {[%emt 0:06:08]} 49. Rb6 {[%emt 0:00:15]} Kd4 {[%emt 0:01:02]} 50. Kf3 {[%emt 0:01:25]} Kc4 {[%emt 0:02:06]} 0-1

[Event "French-ch U12-U14 2024"]
[Site "Agen"]
[Date "2024.04.21"]
[Round "9.12"]
[White "Pereira Garza, Cecilia"]
[Black "Bernard, Ines"]
[Result "1/2-1/2"]
[ECO "A40"]
[WhiteElo "1725"]
[BlackElo "1981"]
[Annotator "TA"]
[PlyCount "136"]
[EventDate "2024.04.14"]
[EventType "swiss"]
[EventCountry "FRA"]
[SourceTitle "playchess.com"]
[Source "ChessBase"]
[SourceQuality "1"]
[TimeControl "5400+30"]

{[%evp 9,136,-72,-71,-71,-65,-93,-83,-135,-141,-174,-174,-224,-192,-213,-168,-175,-176,-241,-212,-212,-182,-262,70,65,61,54,55,54,72,58,64,49,70,75,72,79,71,71,72,42,197,91,197,199,230,209,200,187,185,179,327,320,585,336,329,334,367,365,354,290,293,288,283,283,284,281,349,312,358,354,326,306,369,362,7156,7156,7156,482,4116,514,514,510,615,554,835,835,825,825,825,825,810,810,803,766,668,636,668,658,639,618,625,618,636,636,636,600,600,585,581,582,502,322,322,316,335,332,321,57,238,0,0,0,85,0,0,0,0,0,0]} 1. d4 {[%emt 0:00:02][%cal Bd2d4,Bd4d5][%mdl 32]} e6 {[%emt 0:00:03]} 2. c4 {[%emt 0:00:09]} b6 {[%emt 0:00:02]} 3. Nc3 {[%emt 0:02:09]} Bb4 {[%emt 0:00:09]} 4. Nf3 {[%emt 0:01:11]} Bb7 {[%emt 0:00:05]} 5. d5 {[%emt 0:00:15]} Bxc3+ {[%emt 0:03:11]} 6. bxc3 {[%emt 0:00:10]} Nf6 {[%emt 0:03:00][%cal Re6d5] Inhibits e4.} 7. e4 {[%emt 0:05:58]} Nxe4 {[%emt 0:02:52]} 8. Qd4 {[%emt 0:00:14] [#]} (8. Bd3 $142 Nc5 (8... exd5 9. cxd5 Bxd5 10. O-O $15) (8... Nxc3 9. Qc2 $16) 9. O-O) 8... Qf6 $1 $17 {[%emt 0:02:20][%cal Oe8g8]} 9. dxe6 {[%emt 0:06:14]} (9. Bb2 Qxd4) 9... fxe6 {[%emt 0:04:43]} 10. Bb2 {[%emt 0:13:55]} (10. Nd2 $142) 10... Nc5 {[%emt 0:06:33]} 11. Be2 {[%emt 0:02:28]} Nc6 {[%emt 0:01:59]} 12. Qxf6 {[%emt 0:02:14]} gxf6 {[%emt 0:00:01]} 13. Nd4 {[%emt 0:00:55]} (13. Ba3 {keeps fighting.}) 13... Na4 {[%emt 0:05:45]} 14. Bh5+ {[%emt 0:01:06]} Kd8 {[%emt 0:01:31]} 15. Ba3 {[%emt 0:02:18]} (15. O-O-O $142) 15... Nxc3 $2 {[%emt 0:02:15]} (15... Ne5 $19 {[%cal Oc7c5] Hoping for ...c5!} 16. Be2 Nxc3 (16... Bxg2 $2 17. Rg1 $19)) 16. Nxc6+ $1 $14 {[%emt 0:00:31]} Bxc6 {[%emt 0:09:17]} 17. Bb2 {[%emt 0:00:18][%cal Ba3b2,Bb2f6,Bf6e7][%mdl 32]} Ne4 {[%emt 0:01:50] ...Rg8 would now be deadly.} (17... Bxg2 $2 18. Rg1 Bc6 19. Bxc3 $18) 18. f3 {[%emt 0:00:41]} Rg8 {[%emt 0:01:08]} 19. fxe4 {[%emt 0:00:25]} Rxg2 {[%emt 0:00:03]} 20. Bxf6+ {[%emt 0:00:18]} Kc8 {[%emt 0:00:00]} 21. Bf3 {[%emt 0:02:17]} Rc2 {[%emt 0:00:03]} 22. Be2 {[%emt 0:01:44]} Bxe4 {[%emt 0:01:53]} 23. Rg1 {[%emt 0:00:31]} Kb7 {[%emt 0:05:48]} 24. Rg7 {[%emt 0:02:04]} d6 {[%emt 0:03:16] [#]} ({Black should try} 24... Rf8 $14 25. Bg5 Bf3) 25. Be7 {[%emt 0:01:55]} (25. Rd1 $1 $18 {[%cal Rd1d6] is the precise move to win.} Kc6 26. Rd4) 25... d5 {[%emt 0:03:05]} (25... Kc6 $16) 26. Kd1 $18 {[%emt 0:01:26]} Rc3 {[%emt 0:02:48]} 27. Bf6 {[%emt 0:04:38]} Ra3 {[%emt 0:05:19]} 28. Be5 $36 {[%emt 0:01:24][%mdl 2048] White is on the roll. A strong pair of Bishops.} Rc8 {[%emt 0:01:01]} 29. cxd5 {[%emt 0:00:49]} exd5 {[%emt 0:02:52]} (29... Ra5 {might work better.} 30. Bg3 Rxd5+ 31. Ke1 Rc5) 30. Rc1 {[%emt 0:00:52]} Bd3 $2 {[%emt 0:00:08]} (30... d4 31. Rgxc7+ (31. Bxd4 h5 $18) (31. Rcxc7+ Rxc7 32. Rxc7+ Ka8 $18) 31... Rxc7 32. Rxc7+ Ka8) 31. Rcxc7+ {[%emt 0:02:25]} Rxc7 {[%emt 0:00:06]} 32. Rxc7+ {[%emt 0:00:10]} Ka6 {[%emt 0:00:32]} 33. Bxd3+ {[%emt 0:01:01]} Rxd3+ {[%emt 0:00:04][%mdl 4096] Endgame. KRB-KR} 34. Kc2 {[%emt 0:00:16]} Re3 {[%emt 0:00:35]} 35. Bg3 {[%emt 0:00:23]} h5 {[%emt 0:01:51][%cal Bh7h5,Bh5h4][%mdl 32]} 36. Rd7 {[%emt 0:02:53]} h4 {[%emt 0:07:23]} 37. Bb8 {[%emt 0:00:35][%cal Oa2a4]} Re8 {[%emt 0:00:33]} 38. Rxa7+ {[%emt 0:01:59]} (38. Bxa7 Ra8 $16) 38... Kb5 {[%emt 0:00:12]} 39. Bf4 {[%emt 0:01:31]} Re4 {[%emt 0:00:39]} 40. Rf7 {[%emt 0:01:14]} Kc4 {[%emt 0:03:39]} 41. Bd2 {[%emt 0:00:47] Rf4 is the strong threat.} Kd4 $2 {[%emt 0:02:21]} (41... Re2 42. Rf4+ d4 43. Rxh4 b5) 42. Rf4 {[%emt 0:00:43]} h3 {[%emt 0:01:17]} 43. Rf3 {[%emt 0:00:52]} (43. Bc1 $142 Rxf4 44. Bxf4) 43... Rh4 {[%emt 0:00:16]} (43... Kc4 $142 44. Rc3+ (44. Rxh3 Re2 $18) 44... Kb4 45. Rxh3+ Kc4) 44. Rb3 {[%emt 0:00:19]} (44. Rf4+ $142 Rxf4 45. Bxf4) 44... Kc5 {[%emt 0:00:22]} 45. a3 {[%emt 0:00:57]} b5 {[%emt 0:01:00]} 46. Rb4 {[%emt 0:00:44]} d4 {[%emt 0:00:50]} 47. Kd3 {[%emt 0:00:24]} Rg4 {[%emt 0:00:50]} 48. Be3 {[%emt 0:01:01][%cal Rb4d4]} Rg2 {[%emt 0:01:08]} 49. Bxd4+ {[%emt 0:00:09]} Kc6 {[%emt 0:01:53]} 50. Rb2 {[%emt 0:00:10]} Rg8 {[%emt 0:00:57] Prevents Rxg2} 51. Rc2+ {[%emt 0:00:41]} Kd6 {[%emt 0:00:09]} 52. Rc5 {[%emt 0:00:55]} Ra8 {[%emt 0:00:37]} 53. Rc3 {[%emt 0:00:58]} Rg8 {[%emt 0:01:32]} 54. Rc1 {[%emt 0:03:48]} Rg2 {[%emt 0:01:01]} 55. Ke4 {[%emt 0:01:23]} Re2+ {[%emt 0:02:44]} 56. Kf5 {[%emt 0:00:26]} Kd5 {[%emt 0:00:26]} 57. Bg1 {[%emt 0:00:38]} Rg2 {[%emt 0:00:34]} 58. Kf4 {[%emt 0:00:38]} Ke6 {[%emt 0:00:50]} 59. Rb1 {[%emt 0:01:42]} Kd6 {[%emt 0:00:53]} 60. Rxb5 {[%emt 0:00:26]} Rxg1 {[%emt 0:00:05] KR-KR} 61. Rb3 {[%emt 0:00:10]} Ra1 {[%emt 0:02:08]} 62. Rxh3 {[%emt 0:00:10]} Ra2 {[%emt 0:00:27]} 63. Kg4 $2 {[%emt 0:00:51]} (63. Rd3+ $18 Ke6 64. h4) 63... Rg2+ $2 {[%emt 0:00:30]} ({Better is} 63... Ke5 $1 $14) 64. Kh4 $2 {[%emt 0:00:39]} (64. Kf5 $18) 64... Ke5 $11 {[%emt 0:00:25]} 65. Kh5 {[%emt 0:00:52]} Kf5 {[%emt 0:01:34] [#]} (65... Kf4 $1 $11 {remains equal.}) 66. Rf3+ {[%emt 0:01:58]} ({White should play} 66. a4 $1 $16) 66... Ke4 {[%emt 0:00:16] The position is equal.} 67. Rb3 {[%emt 0:00:24]} Rxh2+ {[%emt 0:00:03]} 68. Kg4 {[%emt 0:00:14]} Rg2+ {[%emt 0:00:11] Weighted Error Value: White=0.52/Black=0.62.  Loses game:     	---       	Black=1      Missed win:     	White=2     	Black=1      Mistake:       	White=6     	Black=6      Inaccurate:     	White=4     	Black=1      OK:         	White=15    	Black=11     Best:        	White=4     	Black=7      Strong:       	White=1     	---} 1/2-1/2

[Event "French-ch U12-U14 2024"]
[Site "Agen"]
[Date "2024.04.21"]
[Round "9.13"]
[White "Saci, Leila"]
[Black "Dubin, Lisa"]
[Result "0-1"]
[ECO "B07"]
[WhiteElo "1675"]
[BlackElo "1711"]
[Annotator "NA COMBH"]
[PlyCount "114"]
[EventDate "2024.04.14"]
[EventType "swiss"]
[EventCountry "FRA"]
[SourceTitle "playchess.com"]
[Source "ChessBase"]
[SourceQuality "1"]
[TimeControl "5400+30"]

1. e4 {[%emt 0:03:19]} d6 {[%emt 0:02:32]} 2. d4 {[%emt 0:00:14]} Nf6 {[%emt 0:00:07]} 3. Nc3 {[%emt 0:00:16]} Nbd7 {[%emt 0:00:14]} 4. f4 {[%emt 0:00:51]} e5 {[%emt 0:00:23]} 5. Nf3 {[%emt 0:01:08]} exd4 {[%emt 0:00:09]} 6. Qxd4 {[%emt 0:00:21]} c6 {[%emt 0:00:29]} 7. Bd2 {[%emt 0:02:18]} Qb6 {[%emt 0:02:11]} 8. O-O-O {[%emt 0:01:13]} Be7 {[%emt 0:05:16]} 9. h3 {[%emt 0:04:26]} O-O {[%emt 0:18:50]} 10. g4 {[%emt 0:02:53]} Re8 {[%emt 0:20:00]} 11. Bg2 {[%emt 0:06:11]} Bf8 {[%emt 0:04:47]} 12. Rhe1 {[%emt 0:09:11]} Nc5 {[%emt 0:06:27]} 13. g5 {[%emt 0:06:19]} Nfd7 {[%emt 0:04:16]} 14. Nh4 {[%emt 0:06:19]} Nb3+ {[%emt 0:02:22]} 15. cxb3 {[%emt 0:02:10]} Qxd4 {[%emt 0:00:14]} 16. Be3 {[%emt 0:00:47]} Qb4 {[%emt 0:01:19]} 17. Rd4 {[%emt 0:01:36]} Qa5 {[%emt 0:01:22]} 18. Nf5 {[%emt 0:01:28]} Qc7 {[%emt 0:10:16]} 19. Red1 {[%emt 0:01:04]} d5 {[%emt 0:02:21]} 20. Kb1 {[%emt 0:02:54]} dxe4 {[%emt 0:01:06]} 21. Bxe4 {[%emt 0:01:41]} Nc5 {[%emt 0:00:44]} 22. Ng3 {[%emt 0:00:33]} Nxe4 {[%emt 0:00:31]} 23. Ncxe4 {[%emt 0:00:20]} Be6 {[%emt 0:02:30]} 24. f5 {[%emt 0:02:49]} Bd5 {[%emt 0:00:33]} 25. Bf4 {[%emt 0:08:01]} Qa5 {[%emt 0:01:54]} 26. Nc3 {[%emt 0:02:23]} Rad8 {[%emt 0:02:07]} 27. R4d3 {[%emt 0:08:01]} Bg2 {[%emt 0:04:48]} 28. a3 {[%emt 0:01:53]} Rxd3 {[%emt 0:00:37]} 29. Rxd3 {[%emt 0:00:00]} Qc5 {[%emt 0:01:40]} 30. Rd2 {[%emt 0:02:07]} Re1+ {[%emt 0:00:48]} 31. Ka2 {[%emt 0:00:27]} Bd5 {[%emt 0:02:18]} 32. Nge2 {[%emt 0:01:56]} Qf2 {[%emt 0:01:32]} 33. Bg3 {[%emt 0:00:48]} Bxb3+ {[%emt 0:00:55]} 34. Kxb3 {[%emt 0:00:12]} Qb6+ {[%emt 0:00:02]} 35. Ka2 {[%emt 0:01:14]} Rf1 {[%emt 0:00:14]} 36. Nd4 {[%emt 0:05:18]} Qc5 {[%emt 0:00:51]} 37. h4 {[%emt 0:04:14]} Qc4+ {[%emt 0:00:48]} 38. Nb3 {[%emt 0:00:13]} Be7 {[%emt 0:00:25]} 39. Rd4 {[%emt 0:01:01]} Qa6 {[%emt 0:00:30]} 40. Bc7 {[%emt 0:01:45]} Kf8 {[%emt 0:00:48]} 41. Ra4 {[%emt 0:01:20]} Qd3 {[%emt 0:00:15]} 42. Rxa7 {[%emt 0:01:04]} Bd8 {[%emt 0:00:08]} 43. Ra8 {[%emt 0:00:34]} Ke7 {[%emt 0:00:24]} 44. Bxd8+ {[%emt 0:01:24]} Kd6 {[%emt 0:00:08]} 45. Bf6 {[%emt 0:03:10]} Qxf5 {[%emt 0:01:05]} 46. Bxg7 {[%emt 0:03:25]} Rf2 {[%emt 0:00:51]} 47. Bd4 {[%emt 0:01:28]} Rg2 {[%emt 0:00:50]} 48. Bc5+ {[%emt 0:00:27]} Kc7 {[%emt 0:00:25]} 49. Re8 {[%emt 0:01:01]} Qc2 {[%emt 0:00:33]} 50. Na4 {[%emt 0:00:43]} b5 {[%emt 0:00:39]} 51. Bb6+ {[%emt 0:00:44]} Kd7 {[%emt 0:00:31]} 52. Rd8+ {[%emt 0:00:12]} Ke7 {[%emt 0:00:12]} 53. Rd4 {[%emt 0:01:02]} bxa4 {[%emt 0:00:24]} 54. Bc5+ {[%emt 0:00:08]} Ke6 {[%emt 0:00:20]} 55. Rd6+ {[%emt 0:00:50]} Ke5 {[%emt 0:00:12]} 56. Rd2 {[%emt 0:00:33]} axb3+ {[%emt 0:00:25]} 57. Ka1 {[%emt 0:00:05]} Qc1# {[%emt 0:02:22]} 0-1

[Event "French-ch U12-U14 2024"]
[Site "Agen"]
[Date "2024.04.21"]
[Round "9.14"]
[White "Hamdi, Anais"]
[Black "Fischler, Ines"]
[Result "0-1"]
[ECO "B13"]
[WhiteElo "1531"]
[BlackElo "1698"]
[Annotator "NA RC COMBH"]
[PlyCount "61"]
[EventDate "2024.04.14"]
[EventType "swiss"]
[EventCountry "FRA"]
[SourceTitle "playchess.com"]
[Source "ChessBase"]
[SourceQuality "1"]
[TimeControl "5400+30"]

1. e4 {[%emt 0:00:04]} c6 {[%emt 0:00:04]} 2. d4 {[%emt 0:00:09]} d5 {[%emt 0:00:04]} 3. exd5 {[%emt 0:00:07]} cxd5 {[%emt 0:00:03]} 4. Bd3 {[%emt 0:00:20]} Nc6 {[%emt 0:00:05]} 5. c3 {[%emt 0:00:08]} Qc7 {[%emt 0:00:04]} 6. h3 {[%emt 0:00:31]} Nf6 {[%emt 0:00:53]} 7. Nf3 {[%emt 0:01:03]} e6 {[%emt 0:00:59]} 8. Bg5 {[%emt 0:03:09]} Be7 {[%emt 0:01:22]} 9. O-O {[%emt 0:11:46]} O-O {[%emt 0:05:56]} 10. Re1 {[%emt 0:02:06]} a6 {[%emt 0:05:41]} 11. Nbd2 {[%emt 0:05:33]} b5 {[%emt 0:02:11]} 12. Ne5 {[%emt 0:04:49]} Rb8 {[%emt 0:07:50]} 13. Qf3 {[%emt 0:21:30]} Bb7 {[%emt 0:21:33]} 14. Qg3 {[%emt 0:24:36]} Nh5 {[%emt 0:06:52]} 15. Qh4 {[%emt 0:02:33]} Bxg5 {[%emt 0:00:29]} 16. Qxh5 {[%emt 0:07:53]} h6 {[%emt 0:00:11]} 17. Ndf3 {[%emt 0:02:43]} Bf6 {[%emt 0:05:00]} 18. g4 {[%emt 0:02:42]} Qe7 {[%emt 0:13:08]} 19. h4 {[%emt 0:01:36]} Bxe5 {[%emt 0:06:05]} 20. dxe5 {[%emt 0:00:49]} f6 {[%emt 0:03:13]} 21. Qg6 {[%emt 0:02:27]} f5 {[%emt 0:01:22]} 22. gxf5 {[%emt 0:00:46]} Qf7 {[%emt 0:03:52]} 23. Qg3 {[%emt 0:03:43]} exf5 {[%emt 0:00:48]} 24. Kh2 {[%emt 0:00:46]} Qh5 {[%emt 0:02:11]} 25. Rg1 {[%emt 0:00:34]} Qg4 {[%emt 0:00:16]} 26. e6 {[%emt 0:00:32]} Rbe8 {[%emt 0:02:52]} 27. Qc7 {[%emt 0:00:23]} Re7 {[%emt 0:01:07]} 28. Qd6 {[%emt 0:00:37]} Qxf3 {[%emt 0:00:34]} 29. Rg3 {[%emt 0:00:34]} Qxf2+ {[%emt 0:00:33]} 30. Kh3 {[%emt 0:00:23]} f4 {[%emt 0:00:48]} 31. Rag1 {[%emt 0:01:08]} 0-1